bitfinex/quotes_BTCUSD_20250314
["timestamp","ask_amount","ask_price","bid_price","bid_amount"]
[1741926662670,0.01922935,82206.0,82205.0,0.1381382]
[1741926663049,0.01922935,82206.0,82205.0,0.14630826]
[1741926664144,0.31922935,82206.0,82205.0,0.14630826]
[1741926664726,0.33139335,82206.0,82205.0,0.14630826]
[1741926665114,0.33139335,82206.0,82205.0,0.1381382]
[1741926665777,0.35423832,82206.0,82205.0,0.1381382]
[1741926666224,0.04207432,82206.0,82205.0,0.1381382]
[1741926666443,0.04207432,82206.0,82205.0,0.2180382]
[1741926666645,0.04207432,82206.0,82205.0,0.22620597]
[1741926666878,0.04207432,82206.0,82205.0,0.28786997]
[1741926667080,0.02301407,82206.0,82205.0,0.28786997]
[1741926667903,0.02301407,82206.0,82205.0,0.28686997]
[1741926668309,0.02301407,82206.0,82205.0,0.29186997]
[1741926668542,0.0001691,82206.0,82205.0,0.29186997]
[1741926669735,0.0001691,82206.0,82205.0,0.28686997]
[1741926670162,0.0001691,82206.0,82205.0,0.29586997]
[1741926670378,0.0001691,82206.0,82205.0,0.71036982]
[1741926670583,0.0001691,82207.0,82206.0,0.3339024]
[1741926670807,0.0001691,82207.0,82206.0,0.34201702]
[1741926671642,0.0001691,82207.0,82206.0,0.35655787]
[1741926671791,0.0001691,82207.0,82206.0,0.40245787]
[1741926672753,0.0001691,82207.0,82206.0,0.40845787]
[1741926673292,0.0001691,82207.0,82206.0,0.41445787]
[1741926673532,0.0001691,82207.0,82206.0,0.40845787]
[1741926673962,0.0001691,82207.0,82206.0,0.41445787]
[1741926675571,0.0001691,82207.0,82206.0,0.40845787]
[1741926676177,0.0001691,82207.0,82206.0,0.82195772]
[1741926676517,0.0001691,82207.0,82206.0,0.83395772]
[1741926676925,0.0001691,82207.0,82206.0,0.82795772]
[1741926677095,0.0001691,82207.0,82206.0,0.83395772]
[1741926680382,0.0001691,82207.0,82206.0,0.95365871]
[1741926681000,0.0001691,82207.0,82206.0,2.45365871]
[1741926681559,0.3,82231.0,82224.0,0.012161]
[1741926681760,0.31222486,82231.0,82225.0,0.147921]
[1741926681984,0.31222486,82231.0,82226.0,0.00802062]
[1741926682190,0.3,82228.0,82226.0,0.00802062]
[1741926682389,0.012161,82227.0,82226.0,0.00802062]
[1741926682767,0.555393,82226.0,82225.0,0.13576]
[1741926682972,0.5663195,82226.0,82225.0,0.14378062]
[1741926683802,0.5663195,82226.0,82225.0,0.13576]
[1741926683975,0.3,82223.0,82218.0,0.243254]
[1741926684185,0.3,82223.0,82219.0,0.14378062]
[1741926685916,0.312162,82220.0,82219.0,0.00902062]
[1741926686126,0.312162,82220.0,82219.0,0.01102062]
[1741926686553,0.312162,82220.0,82219.0,0.003]
[1741926686733,0.012163,82213.0,82212.0,0.13576]
[1741926686959,0.555433,82213.0,82212.0,0.14378666]
[1741926687520,0.5668203,82213.0,82212.0,0.13576]
[1741926688046,0.58959327,82213.0,82212.0,0.13576]
[1741926688905,0.58959327,82213.0,82212.0,0.13776]
[1741926689147,0.6086521,82213.0,82212.0,0.1375435]
[1741926689459,0.6086521,82213.0,82212.0,0.1395435]
[1741926690629,0.3532191,82213.0,82212.0,0.1395435]
[1741926690833,0.3532191,82213.0,82212.0,0.22989054]
[1741926691246,0.3532191,82213.0,82212.0,0.14769054]
[1741926692255,0.3532191,82213.0,82212.0,0.15985354]
[1741926692710,0.33416027,82213.0,82212.0,0.15985354]
[1741926693141,0.33416027,82213.0,82212.0,0.23715354]
[1741926693142,0.03416027,82213.0,82212.0,0.23715354]
[1741926698100,0.03416027,82213.0,82212.0,0.23749174]
[1741926698294,0.03432937,82213.0,82212.0,0.23749174]
[1741926699760,0.03432937,82213.0,82212.0,0.22532874]
[1741926699968,0.03432937,82213.0,82212.0,0.14824524]
[1741926700556,0.58976237,82213.0,82212.0,0.01248524]
[1741926700886,0.58976237,82213.0,82212.0,0.1400982]
[1741926702682,0.60882043,82213.0,82212.0,0.1400982]
[1741926707164,0.60882043,82213.0,82212.0,0.0043382]
[1741926708104,0.60882043,82213.0,82212.0,0.01244146]
[1741926708307,0.60882043,82213.0,82212.0,0.0043382]
[1741926708523,0.60882043,82213.0,82212.0,0.01244146]
[1741926708698,0.60882043,82213.0,82212.0,0.0043382]
[1741926708901,0.60882043,82213.0,82212.0,0.01244146]
[1741926709192,0.60882043,82213.0,82212.0,0.0043382]
[1741926709966,0.60860943,82213.0,82212.0,0.0043382]
[1741926713116,0.5667784,82213.0,82212.0,0.0043382]
[1741926713871,0.82777101,82213.0,82212.0,0.0043382]
[1741926715534,0.555495,82193.0,82191.0,0.000338]
[1741926716088,0.3,82193.0,82192.0,0.0085705]
[1741926716379,0.34187662,82193.0,82192.0,0.0085705]
[1741926717099,0.35404262,82193.0,82192.0,0.0085705]
[1741926718684,0.35556004,82193.0,82192.0,0.0085705]
[1741926718890,0.36772604,82193.0,82192.0,0.0085705]
[1741926720415,0.35556004,82193.0,82192.0,0.0085705]
[1741926720566,0.36772604,82193.0,82192.0,0.0085705]
[1741926720969,0.35556004,82193.0,82192.0,0.0085705]
[1741926721834,0.36772604,82193.0,82192.0,0.0085705]
[1741926722190,0.36772604,82193.0,82192.0,0.0003382]
[1741926723196,0.37911224,82193.0,82192.0,0.0003382]
[1741926724000,0.50842064,82193.0,82192.0,0.0003382]
[1741926724329,0.49703444,82193.0,82192.0,0.0003382]
[1741926725855,0.37707355,82193.0,82192.0,0.0003382]
[1741926727297,0.35404262,82193.0,82192.0,0.0003382]
[1741926732152,0.36308984,82193.0,82192.0,0.0003382]
[1741926737833,0.35404262,82193.0,82192.0,0.0003382]
[1741926740827,0.36318031,82193.0,82192.0,0.0003382]
[1741926741035,0.58399859,82193.0,82192.0,0.0003382]
[1741926742415,0.56518532,82193.0,82192.0,0.0003382]
[1741926742800,0.56218532,82193.0,82192.0,0.0003382]
[1741926743228,0.56518532,82193.0,82192.0,0.0003382]
[1741926744112,0.58425122,82193.0,82192.0,0.0003382]
[1741926744272,0.50575122,82193.0,82192.0,0.0003382]
[1741926750358,0.49661353,82193.0,82192.0,0.0003382]
[1741926750778,0.49661353,82193.0,82191.0,2e-07]
[1741926750779,0.555498,82192.0,82191.0,2e-07]
[1741926750977,0.75225889,82192.0,82191.0,2e-07]
[1741926752218,0.55557,82169.0,82166.0,0.000338]
[1741926752419,0.55557,82169.0,82168.0,0.00041787]
[1741926752622,0.67553089,82169.0,82168.0,0.00041787]
[1741926753028,0.69835112,82169.0,82168.0,0.00041787]
[1741926753227,0.71213529,82169.0,82168.0,0.00041787]
[1741926754042,0.71413529,82169.0,82168.0,0.00041787]
[1741926754294,0.71613529,82169.0,82168.0,0.00041787]
[1741926754524,0.71238419,82169.0,82168.0,0.00041787]
[1741926754871,0.72146642,82169.0,82168.0,0.00041787]
[1741926755472,0.70239729,82169.0,82168.0,0.00041787]
[1741926758484,0.67953089,82169.0,82168.0,0.00041787]
[1741926758655,0.69860151,82169.0,82168.0,0.00041787]
[1741926760072,0.72134502,82169.0,82168.0,0.00041787]
[1741926762871,0.72134502,82169.0,82139.0,0.0754382]
[1741926762872,0.55566,82140.0,82139.0,0.0754382]
[1741926763074,0.55566,82140.0,82139.0,0.07584915]
[1741926763694,0.57473335,82140.0,82139.0,0.07584915]
[1741926763826,0.55566,82140.0,82139.0,0.07584915]
[1741926764239,0.55566,82140.0,82139.0,0.07684915]
[1741926764669,0.66661077,82140.0,82139.0,0.00174915]
[1741926764869,0.55566,82140.0,82139.0,0.00153815]
[1741926765736,0.55566,82140.0,82139.0,0.00053815]
[1741926766148,0.55666,82140.0,82139.0,0.00053815]
[1741926766583,0.56588326,82140.0,82139.0,0.00053815]
[1741926768010,0.58495877,82140.0,82139.0,0.00053815]
[1741926770084,0.70491966,82140.0,82139.0,0.00053815]
[1741926771546,0.70525826,82140.0,82139.0,0.00053815]
[1741926771772,0.42474127,82140.0,82139.0,0.00053815]
[1741926772753,0.56044038,82140.0,82139.0,0.00053815]
[1741926780454,0.55944038,82140.0,82139.0,0.00053815]
[1741926781400,0.54336487,82140.0,82139.0,0.00053815]
[1741926781758,0.54636487,82140.0,82139.0,0.00053815]
[1741926782176,0.54336487,82140.0,82139.0,0.00053815]
[1741926782379,0.66332576,82140.0,82139.0,0.00053815]
[1741926782678,0.66632576,82140.0,82139.0,0.00053815]
[1741926784588,0.68540143,82140.0,82139.0,0.00053815]
[1741926785488,0.66632576,82140.0,82139.0,0.00053815]
[1741926790107,0.555704,82126.0,82125.0,0.03481455]
[1741926790298,0.555704,82126.0,82125.0,0.04363722]
[1741926790974,0.555704,82126.0,82125.0,0.03481455]
[1741926791325,0.5747801,82126.0,82125.0,0.03681455]
[1741926791648,0.5747801,82126.0,82125.0,0.03781455]
[1741926791880,0.5747801,82126.0,82125.0,0.11691455]
[1741926792068,0.58834488,82126.0,82125.0,0.11691455]
[1741926792494,0.58834488,82126.0,82125.0,0.11491455]
[1741926792625,0.58934488,82126.0,82125.0,0.11491455]
[1741926792969,0.58934488,82126.0,82125.0,0.11391455]
[1741926793110,0.59034488,82126.0,82125.0,0.11391455]
[1741926793512,0.58934488,82126.0,82125.0,0.11391455]
[1741926793772,0.57026878,82126.0,82125.0,0.11391455]
[1741926794003,0.57026878,82126.0,82125.0,0.11491455]
[1741926794128,0.56926878,82126.0,82125.0,0.11491455]
[1741926794348,0.56926878,82126.0,82125.0,0.11591455]
[1741926794913,0.56926878,82126.0,82125.0,0.11608385]
[1741926800175,0.58834445,82126.0,82125.0,0.11608385]
[1741926801553,0.58834445,82126.0,82125.0,0.12490652]
[1741926802189,0.58834445,82126.0,82125.0,0.25192385]
[1741926802593,0.61121517,82126.0,82125.0,0.25192385]
[1741926806577,0.61155377,82126.0,82125.0,0.25192385]
[1741926810425,0.5924781,82126.0,82125.0,0.25192385]
[1741926813470,0.61155377,82126.0,82125.0,0.25192385]
[1741926813667,0.61155377,82126.0,82125.0,0.11608385]
[1741926814471,0.5924781,82126.0,82125.0,0.11608385]
[1741926815085,0.56960738,82126.0,82125.0,0.11608385]
[1741926819208,0.58868305,82126.0,82125.0,0.11608385]
[1741926822029,0.61156918,82126.0,82125.0,0.11608385]
[1741926824377,0.58868305,82126.0,82125.0,0.11608385]
[1741926831599,0.61157251,82126.0,82125.0,0.11608385]
[1741926832753,0.58868305,82126.0,82125.0,0.11608385]
[1741926834207,0.01390338,82126.0,82125.0,0.12825985]
[1741926834573,0.01390338,82126.0,82125.0,0.13714382]
[1741926834816,0.01390338,82126.0,82125.0,0.16160407]
[1741926835177,0.01390338,82126.0,82125.0,0.16060407]
[1741926835352,0.01390338,82126.0,82125.0,0.16160407]
[1741926835562,0.01390338,82126.0,82125.0,0.16460407]
[1741926836374,0.03676987,82126.0,82125.0,0.16460407]
[1741926837517,0.01390338,82126.0,82125.0,0.16460407]
[1741926837729,0.0003386,82126.0,82125.0,0.16460407]
[1741926837937,0.0003386,82126.0,82125.0,0.16582163]
[1741926839971,0.02318367,82126.0,82125.0,0.16582163]
[1741926840551,0.02318367,82126.0,82125.0,0.18036248]
[1741926841236,0.02318367,82126.0,82125.0,0.17914492]
[1741926841652,0.02318367,82126.0,82125.0,0.16460407]
[1741926848061,0.02318367,82126.0,82125.0,0.16582159]
[1741926848540,0.0003386,82126.0,82125.0,0.16582159]
[1741926849071,0.0003386,82126.0,82125.0,0.30162159]
[1741926849274,0.0003386,82126.0,82125.0,0.30040407]
[1741926853144,0.01941294,82126.0,82125.0,0.28822807]
[1741926853334,0.01941294,82126.0,82125.0,0.30040407]
[1741926866305,0.01941294,82126.0,82125.0,0.28822807]
[1741926867122,0.01941294,82126.0,82125.0,0.28622807]
[1741926867598,0.01941294,82126.0,82125.0,0.28922807]
[1741926867798,0.01941294,82126.0,82125.0,0.28622807]
[1741926868003,0.01941294,82126.0,82125.0,0.29540407]
[1741926868223,0.01941294,82126.0,82125.0,0.29940407]
[1741926868539,0.01941294,82126.0,82125.0,0.29540407]
[1741926868956,0.01941294,82126.0,82125.0,0.28722807]
[1741926869260,0.01941294,82126.0,82125.0,0.01305327]
[1741926869397,0.03158894,82126.0,82125.0,0.01605327]
[1741926869602,0.0125146,82126.0,82125.0,0.1429693]
[1741926870345,0.3125146,82126.0,82125.0,0.1429693]
[1741926870544,0.3125146,82126.0,82125.0,0.0041693]
[1741926870821,0.3125146,82126.0,82125.0,0.1399693]
[1741926871222,0.3125146,82126.0,82125.0,0.1359693]
[1741926871545,0.3125146,82126.0,82125.0,0.1399693]
[1741926872688,0.33159143,82126.0,82125.0,0.1399693]
[1741926873624,0.33159143,82126.0,82125.0,0.1379693]
[1741926873977,0.33159143,82126.0,82125.0,0.1389693]
[1741926874335,0.33159143,82126.0,82125.0,0.1379693]
[1741926874736,0.33159143,82126.0,82125.0,0.1389693]
[1741926875261,0.33159143,82126.0,82125.0,0.1369693]
[1741926875498,0.33159143,82126.0,82125.0,0.1379693]
[1741926875675,0.33159143,82126.0,82125.0,0.1369693]
[1741926876234,0.33159143,82126.0,82125.0,0.1359693]
[1741926897867,0.33159143,82126.0,82125.0,0.0959693]
[1741926899271,0.01941543,82126.0,82125.0,0.1770693]
[1741926899516,0.0003386,82126.0,82125.0,0.1770693]
[1741926899719,0.0003386,82126.0,82125.0,0.18595351]
[1741926900653,0.0003386,82126.0,82125.0,0.18612261]
[1741926900860,0.0003386,82126.0,82125.0,0.19829861]
[1741926901220,0.0003386,82126.0,82125.0,0.20029861]
[1741926901623,0.0003386,82126.0,82125.0,0.18812261]
[1741926902827,0.3125146,82126.0,82125.0,0.10702261]
[1741926903011,0.3125146,82126.0,82125.0,0.1001384]
[1741926903641,0.3125146,82126.0,82125.0,0.0981384]
[1741926904046,0.3125146,82126.0,82125.0,0.0961384]
[1741926904245,0.3125146,82126.0,82125.0,0.0971384]
[1741926904463,0.3125146,82126.0,82125.0,0.10600439]
[1741926905165,0.255702,82127.0,82125.0,0.10800439]
[1741926905623,0.012176,82126.0,82125.0,0.01203509]
[1741926905804,0.0913213,82126.0,82125.0,0.01203509]
[1741926905959,0.0913213,82126.0,82125.0,0.0011691]
[1741926906163,0.012176,82126.0,82125.0,0.0001691]
[1741926906363,0.012176,82126.0,82125.0,0.0021691]
[1741926906789,0.012176,82126.0,82125.0,0.0001691]
[1741926907213,0.013176,82126.0,82125.0,0.0001691]
[1741926908171,0.014176,82126.0,82125.0,0.0001691]
[1741926908927,0.03325331,82126.0,82125.0,0.0001691]
[1741926910078,0.11450634,82126.0,82125.0,0.0001691]
[1741926910482,0.03325331,82126.0,82125.0,0.0001691]
[1741926912080,0.03359151,82126.0,82125.0,0.0001691]
[1741926924981,0.33359151,82126.0,82125.0,0.0001691]
[1741926928572,0.312176,82124.0,82123.0,0.0003382]
[1741926928952,0.312176,82124.0,82122.0,0.0003382]
[1741926928953,0.555713,82123.0,82122.0,0.0003382]
[1741926930328,0.67567389,82123.0,82122.0,0.0003382]
[1741926931604,0.57479348,82123.0,82122.0,0.0003382]
[1741926932251,0.57879348,82123.0,82122.0,0.0003382]
[1741926932980,0.58279348,82123.0,82122.0,0.0003382]
[1741926934415,0.58313168,82123.0,82122.0,0.0003382]
[1741926941037,0.57913168,82123.0,82122.0,0.0003382]
[1741926941245,0.57513168,82123.0,82122.0,0.0003382]
[1741926941445,0.58313168,82123.0,82122.0,0.0003382]
[1741926942228,0.57913168,82123.0,82122.0,0.0003382]
[1741926943014,0.69509257,82123.0,82122.0,0.0003382]
[1741926943333,0.57813168,82123.0,82122.0,0.0003382]
[1741926944602,0.58113168,82123.0,82122.0,0.0003382]
[1741926944806,0.5620512,82123.0,82122.0,0.0003382]
[1741926945703,0.5590512,82123.0,82122.0,0.0803382]
[1741926945896,0.5610512,82123.0,82122.0,0.0803382]
[1741926946365,0.5580512,82123.0,82122.0,0.0803382]
[1741926946514,0.5600512,82123.0,82122.0,0.0803382]
[1741926946877,0.0043382,82123.0,82122.0,0.0803382]
[1741926947302,0.0043382,82123.0,82122.0,0.08754046]
[1741926947676,0.3043382,82123.0,82122.0,0.08754046]
[1741926947877,0.3023382,82123.0,82122.0,0.08754046]
[1741926948085,0.34426403,82123.0,82122.0,0.08754046]
[1741926948419,0.34226403,82123.0,82122.0,0.08754046]
[1741926948545,0.04226403,82123.0,82122.0,0.39085746]
[1741926950052,0.0003382,82126.0,82125.0,0.39954785]
[1741926950254,0.243494,82138.0,82135.0,0.1293]
[1741926950376,0.01292243,82140.0,82136.0,0.13576]
[1741926950773,0.555666,82138.0,82137.0,0.00714792]
[1741926951000,0.555666,82138.0,82137.0,0.13576]
[1741926951400,0.555666,82138.0,82137.0,0.14289688]
[1741926951682,0.555666,82138.0,82137.0,0.13576]
[1741926952500,0.555666,82138.0,82137.0,0.001]
[1741926952951,0.255688,82131.0,82130.0,0.13576]
[1741926953601,0.27476216,82131.0,82130.0,0.13576]
[1741926953809,0.255688,82131.0,82130.0,0.13576]
[1741926954500,0.255688,82131.0,82130.0,0.13676]
[1741926955142,0.255688,82131.0,82130.0,0.1449017]
[1741926956145,0.555688,82131.0,82130.0,0.1449017]
[1741926956348,0.555688,82131.0,82130.0,0.0091417]
[1741926956527,0.555688,82131.0,82130.0,0.002]
[1741926956936,0.5747643,82131.0,82130.0,0.002]
[1741926957351,0.5747643,82131.0,82130.0,0.001]
[1741926957529,0.5751025,82131.0,82130.0,0.001]
[1741926957730,0.58719256,82131.0,82130.0,0.001]
[1741926958561,0.012176,82123.0,82122.0,0.0003382]
[1741926959258,0.555713,82123.0,82122.0,0.0003382]
[1741926960249,0.556713,82123.0,82122.0,0.0003382]
[1741926976649,0.556713,82123.0,82122.0,0.00752961]
[1741926976824,0.556713,82123.0,82122.0,0.0003382]
[1741926977023,0.556713,82123.0,82122.0,0.00752961]
[1741926978391,0.556713,82123.0,82122.0,0.0003382]
[1741926984850,0.556713,82123.0,82122.0,0.00753031]
[1741926985002,0.556713,82123.0,82122.0,0.0003382]
[1741926985200,0.556713,82123.0,82122.0,0.00753031]
[1741926985404,0.556713,82123.0,82122.0,0.0003382]
[1741926985735,0.556713,82123.0,82122.0,0.00753031]
[1741926985922,0.556713,82123.0,82122.0,0.0003382]
[1741926986124,0.556713,82123.0,82122.0,0.00753031]
[1741926986358,0.556713,82123.0,82122.0,0.0003382]
[1741926986484,0.556713,82123.0,82122.0,0.00753031]
[1741926986684,0.556713,82123.0,82122.0,0.0003382]
[1741926986887,0.556713,82123.0,82122.0,0.00753031]
[1741926987102,0.556713,82123.0,82122.0,0.0003382]
[1741926987307,0.301,82123.0,82122.0,0.0003382]
[1741926987513,0.301,82123.0,82122.0,0.13943031]
[1741926988166,0.301,82123.0,82122.0,0.15160731]
[1741926988588,0.001,82123.0,82122.0,0.15160731]
[1741926988797,0.001,82123.0,82122.0,0.15282486]
[1741926989206,0.001,82123.0,82122.0,0.58686556]
[1741926989529,0.001,82123.0,82122.0,0.705349]
[1741926989910,0.0003382,82126.0,82125.0,0.14931685]
[1741926990114,0.0003382,82126.0,82125.0,0.15053417]
[1741926990319,0.0003382,82126.0,82125.0,0.40125532]
[1741926990614,0.0003382,82126.0,82125.0,0.400038]
[1741926990995,0.0003382,82126.0,82125.0,0.399038]
[1741926991395,0.0003382,82126.0,82125.0,0.398038]
[1741926991599,0.0013382,82126.0,82125.0,0.401038]
[1741926992257,0.0023382,82126.0,82125.0,0.403038]
[1741926992620,0.0023382,82126.0,82125.0,0.52273899]
[1741926992825,0.0023382,82126.0,82125.0,1.63983884]
[1741926993430,0.0023382,82126.0,82125.0,3.13983884]
[1741926993862,0.0013382,82126.0,82125.0,3.13683884]
[1741926994315,0.0013382,82126.0,82125.0,3.13883884]
[1741926994484,0.0013382,82126.0,82125.0,3.14483884]
[1741926995114,0.0013382,82126.0,82125.0,3.13883884]
[1741926995454,0.0013382,82126.0,82125.0,3.14483884]
[1741926999286,0.00074843,82140.0,82139.0,0.383863]
[1741926999509,0.00074843,82140.0,82139.0,1.7268237]
[1741926999702,0.00074843,82140.0,82139.0,1.73395226]
[1741927000755,0.00074843,82140.0,82139.0,1.73995226]
[1741927001370,0.00074843,82140.0,82139.0,1.74595226]
[1741927001764,0.00074843,82140.0,82139.0,1.75864183]
[1741927002202,0.00074843,82140.0,82139.0,1.87834282]
[1741927003302,0.00074843,82140.0,82139.0,3.37834282]
[1741927003500,0.00074843,82140.0,82139.0,3.37234282]
[1741927003996,0.00074843,82140.0,82139.0,3.37834282]
[1741927004335,0.00074843,82140.0,82139.0,3.37234282]
[1741927004537,0.00074843,82140.0,82139.0,4.06994282]
[1741927004762,0.00074843,82140.0,82139.0,4.07494282]
[1741927004938,0.00074843,82140.0,82139.0,4.09947952]
[1741927005141,0.00074843,82140.0,82139.0,4.09447952]
[1741927005485,0.00074843,82140.0,82139.0,2.46479952]
[1741927005682,0.00074843,82140.0,82139.0,2.45210995]
[1741927005882,0.00074843,82140.0,82139.0,2.58774995]
[1741927006125,0.00074843,82140.0,82139.0,2.45210995]
[1741927006329,0.00074843,82140.0,82139.0,2.58774995]
[1741927008056,0.00074843,82140.0,82139.0,2.46804896]
[1741927010447,0.00074843,82140.0,82139.0,1.77044896]
[1741927013377,0.00074843,82140.0,82139.0,1.63480896]
[1741927013614,0.00074843,82140.0,82139.0,1.77044896]
[1741927021814,0.00074843,82140.0,82139.0,0.99720896]
[1741927027113,0.00074843,82140.0,82139.0,0.99120896]
[1741927027316,0.00074843,82140.0,82139.0,0.98520896]
[1741927027530,0.00074843,82140.0,82139.0,0.99120896]
[1741927027724,0.00074843,82140.0,82139.0,0.99720896]
[1741927027923,0.00074843,82140.0,82139.0,0.99120896]
[1741927028486,0.00074843,82140.0,82139.0,0.99720896]
[1741927036255,0.00074843,82140.0,82139.0,0.99720896]
[1741927041950,0.00074843,82140.0,82139.0,0.91870896]
[1741927042460,0.24423443,82140.0,82139.0,0.04366526]
[1741927042670,0.25640843,82140.0,82139.0,0.01912856]
[1741927042800,0.25640843,82140.0,82139.0,0.012]
[1741927043005,0.63840843,82140.0,82139.0,0.012]
[1741927043199,0.68600843,82140.0,82139.0,0.006]
[1741927043413,0.80596932,82140.0,82139.0,0.006]
[1741927043647,0.80596932,82140.0,82139.0,0.011]
[1741927044020,0.80596932,82140.0,82139.0,0.006]
[1741927044423,0.80596932,82140.0,82139.0,0.009]
[1741927044634,0.80596932,82140.0,82139.0,0.003]
[1741927044831,0.555685,82132.0,82131.0,0.0001691]
[1741927045077,0.634385,82132.0,82131.0,0.0001691]
[1741927049347,0.44412463,82132.0,82131.0,0.0001691]
[1741927049503,0.45629963,82132.0,82131.0,0.0001691]
[1741927050061,0.4753756,82132.0,82131.0,0.0001691]
[1741927053484,0.0966756,82132.0,82131.0,0.0001691]
[1741927062744,0.01907597,82132.0,82131.0,0.0001691]
[1741927063099,0.03125097,82132.0,82131.0,0.00701911]
[1741927063451,0.03125097,82132.0,82131.0,0.0001691]
[1741927064494,0.03158937,82132.0,82131.0,0.1358491]
[1741927066088,0.03158937,82132.0,82131.0,0.1368491]
[1741927066817,0.03158937,82132.0,82131.0,0.14369911]
[1741927070465,0.03158937,82132.0,82131.0,0.1368491]
[1741927075766,0.255685,82133.0,82131.0,0.1368491]
[1741927076541,0.012175,82132.0,82131.0,0.1358491]
[1741927077081,0.0125134,82132.0,82131.0,0.1358491]
[1741927078855,0.0125134,82132.0,82131.0,0.1368491]
[1741927079057,0.03158992,82132.0,82131.0,0.1368491]
[1741927082735,0.03158992,82132.0,82131.0,0.0011691]
[1741927084261,0.03158992,82132.0,82131.0,0.0001691]
[1741927088483,0.33158992,82132.0,82131.0,0.0001691]
[1741927103045,0.3125134,82132.0,82131.0,0.0001691]
[1741927105754,0.38257184,82132.0,82131.0,0.0001691]
[1741927106121,0.46317184,82132.0,82131.0,0.0001691]
[1741927106332,0.48224958,82132.0,82131.0,0.0001691]
[1741927108557,0.555704,82126.0,82125.0,0.0001691]
[1741927109780,0.67566489,82126.0,82125.0,0.0001691]
[1741927110004,0.67566489,82126.0,82122.0,0.0003382]
[1741927110005,0.555713,82123.0,82122.0,0.0003382]
[1741927110203,0.638613,82123.0,82122.0,0.0003382]
[1741927110372,0.684113,82123.0,82122.0,0.0003382]
[1741927110596,0.80407389,82123.0,82122.0,0.0003382]
[1741927110794,0.8231543,82123.0,82122.0,0.0003382]
[1741927113019,0.8261543,82123.0,82122.0,0.0003382]
[1741927113841,0.8261543,82123.0,82097.0,0.0487]
[1741927113842,0.012181,82089.0,82088.0,0.0809]
[1741927114042,0.555819,82089.0,82088.0,0.22340317]
[1741927114247,0.555819,82089.0,82088.0,0.00686317]
[1741927114619,0.255825,82087.0,82086.0,0.0491]
[1741927114978,0.255825,82087.0,82086.0,0.05599483]
[1741927115180,0.255825,82087.0,82086.0,0.05611805]
[1741927116998,0.255825,82087.0,82086.0,0.05711805]
[1741927117552,0.27490988,82087.0,82086.0,0.05711805]
[1741927117753,0.27490988,82087.0,82086.0,0.05911805]
[1741927120229,0.01908488,82087.0,82086.0,0.13601805]
[1741927121266,0.03126688,82087.0,82086.0,0.13601805]
[1741927121473,0.27490988,82087.0,82086.0,0.12912322]
[1741927121887,0.27490988,82087.0,82086.0,0.13605265]
[1741927122524,0.27490988,82087.0,82086.0,0.13622185]
[1741927122952,0.27490988,82087.0,82086.0,0.01022185]
[1741927123358,0.27490988,82087.0,82086.0,0.00329242]
[1741927123878,0.27490988,82087.0,82086.0,0.00229242]
[1741927124087,0.57490988,82087.0,82086.0,0.00229242]
[1741927124290,0.57490988,82087.0,82086.0,0.00029242]
[1741927124495,0.555825,82087.0,82086.0,0.00129242]
[1741927125476,0.555825,82087.0,82086.0,0.00029242]
[1741927126132,0.555825,82087.0,82086.0,0.00129242]
[1741927127706,0.57491137,82087.0,82086.0,0.00129242]
[1741927162361,0.02477054,82089.0,82086.0,0.12439242]
[1741927162587,0.312182,82087.0,82086.0,0.13135865]
[1741927163262,0.08892594,82087.0,82086.0,0.12339242]
[1741927163462,0.012182,82087.0,82086.0,0.12339242]
[1741927163674,0.012182,82087.0,82086.0,0.13035865]
[1741927165431,0.012182,82087.0,82086.0,0.13135865]
[1741927171723,0.012182,82087.0,82086.0,0.26703865]
[1741927173099,0.312182,82087.0,82086.0,0.26703865]
[1741927180411,0.312182,82087.0,82086.0,0.00825865]
[1741927180794,0.312182,82087.0,82086.0,0.00129242]
[1741927183279,0.3125206,82087.0,82086.0,0.00129242]
[1741927184111,0.3125206,82087.0,82086.0,0.13697242]
[1741927189720,0.3125206,82087.0,82086.0,0.00129242]
[1741927203294,0.0003386,82087.0,82086.0,0.08279242]
[1741927203507,0.0003386,82087.0,82086.0,0.33862042]
[1741927203718,0.0003386,82087.0,82086.0,0.08977533]
[1741927204124,0.0003386,82087.0,82086.0,0.13867533]
[1741927204519,0.5439816,82087.0,82086.0,0.13867533]
[1741927204745,0.3003386,82087.0,82086.0,0.13867533]
[1741927205753,0.3003386,82087.0,82086.0,0.15085733]
[1741927206162,0.3003386,82087.0,82086.0,0.13867533]
[1741927206682,0.3125206,82087.0,82086.0,0.13867533]
[1741927207547,0.5561636,82087.0,82086.0,0.13867533]
[1741927213152,0.3003386,82087.0,82086.0,0.13867533]
[1741927213785,0.255824,82088.0,82086.0,0.13867533]
[1741927213990,0.25622854,82089.0,82086.0,0.13867533]
[1741927214163,0.01258954,82089.0,82086.0,0.13867533]
[1741927214365,0.01218,82097.0,82092.0,0.243627]
[1741927214564,0.255802,82095.0,82090.0,0.243632]
[1741927214770,0.243627,82093.0,82089.0,0.243635]
[1741927214961,0.255805,82094.0,82090.0,0.243632]
[1741927215298,0.255811,82092.0,82087.0,0.243642]
[1741927215704,0.243636,82090.0,82086.0,0.14387442]
[1741927215882,0.255811,82092.0,82086.0,0.38651842]
[1741927216335,0.255807,82093.0,82088.0,0.255821]
[1741927216486,0.256807,82093.0,82088.0,0.255821]
[1741927216657,0.256807,82093.0,82089.0,0.243636]
[1741927216859,0.255807,82093.0,82089.0,0.243636]
[1741927217058,0.002,82094.0,82089.0,0.255817]
[1741927217369,0.002,82094.0,82089.0,0.012181]
[1741927217552,0.01274299,82097.0,82095.0,0.243618]
[1741927217919,0.255786,82100.0,82095.0,0.243618]
[1741927218257,0.255786,82100.0,82095.0,0.242618]
[1741927218460,0.255789,82099.0,82094.0,0.333301]
[1741927219032,0.26822772,82099.0,82094.0,0.332301]
[1741927219231,0.0003382,82097.0,82094.0,0.332301]
[1741927219435,0.0003382,82097.0,82094.0,0.088681]
[1741927219646,0.0003382,82097.0,82095.0,0.255799]
[1741927220680,0.01942165,82097.0,82095.0,0.255799]
[1741927221226,0.01942165,82097.0,82096.0,0.01218]
[1741927221526,0.01942165,82097.0,82094.0,0.0775]
[1741927221731,0.03160165,82097.0,82094.0,0.0775]
[1741927221883,0.03160165,82097.0,82094.0,0.0765]
[1741927222086,0.243615,82097.0,82094.0,0.0765]
[1741927222415,0.255795,82097.0,82095.0,0.00795909]
[1741927222815,0.255795,82097.0,82095.0,0.00695909]
[1741927223527,0.07643137,82098.0,82095.0,0.00695909]
[1741927224746,0.07643137,82098.0,82095.0,0.00795909]
[1741927225144,0.07643137,82098.0,82095.0,0.00695909]
[1741927225489,0.07643137,82098.0,82095.0,0.00895909]
[1741927225930,0.07643137,82098.0,82095.0,0.00795909]
[1741927226132,0.07643137,82098.0,82095.0,0.00895909]
[1741927229216,0.08333451,82098.0,82095.0,0.00895909]